[Event "Titled Tuesday Blitz July 05 Late 2022"]
[White "Timofeev, Artyom"]
[Black "Melikyan, Gnel"]
[WhiteFideId "4140419"]
[BlackFideId "54109990"]
[WhiteElo "2578"]
[BlackElo "1772"]
[Result "1-0"]
[Round "03"]
[TimeControl "180+1"]
[Date "2022.07.05"]
[WhiteClock "0:00:10"]
[BlackClock "0:00:02"]

1. e4 {[%clk 0:03:00]}  c5 {[%clk 0:02:58]} 2. Nc3 {[%clk 0:03:00]}  Nc6 {[%clk 0:02:59]} 3. Bb5 {[%clk 0:02:59]}  g6 {[%clk 0:02:59]} 4. Bxc6 {[%clk 0:02:55]}  dxc6 {[%clk 0:02:59]} 5. d3 {[%clk 0:02:55]}  Bg7 {[%clk 0:02:59]} 6. f4 {[%clk 0:02:53]}  Nf6 {[%clk 0:02:56]} 7. Nf3 {[%clk 0:02:52]}  Nd7 {[%clk 0:02:55]} 8. O-O {[%clk 0:02:48]}  e5 {[%clk 0:02:54]} 9. f5 {[%clk 0:02:41]}  b6 {[%clk 0:02:48]} 10. Bg5 {[%clk 0:02:39]}  f6 {[%clk 0:02:48]} 11. Be3 {[%clk 0:02:39]}  g5 {[%clk 0:02:45]} 12. Ne2 {[%clk 0:02:35]}  h5 {[%clk 0:02:43]} 13. a3 {[%clk 0:02:33]}  Qe7 {[%clk 0:02:35]} 14. Qd2 {[%clk 0:02:29]}  Ba6 {[%clk 0:02:17]} 15. b4 {[%clk 0:02:27]}  Rd8 {[%clk 0:02:10]} 16. Qc3 {[%clk 0:02:25]}  Bf8 {[%clk 0:02:08]} 17. Rfb1 {[%clk 0:02:14]}  Bb7 {[%clk 0:01:59]} 18. Nd2 {[%clk 0:02:11]}  Kf7 {[%clk 0:01:55]} 19. Nc4 {[%clk 0:02:04]}  Kg8 {[%clk 0:01:45]} 20. h3 {[%clk 0:01:57]}  Rh7 {[%clk 0:01:42]} 21. Ng3 {[%clk 0:01:49]}  Ba6 {[%clk 0:01:35]} 22. Nf1 {[%clk 0:01:46]}  Qf7 {[%clk 0:01:32]} 23. Ncd2 {[%clk 0:01:42]}  Bb7 {[%clk 0:01:30]} 24. Bf2 {[%clk 0:01:40]}  Rg7 {[%clk 0:01:27]} 25. Ne3 {[%clk 0:01:39]}  Qe7 {[%clk 0:01:25]} 26. Qb3+ {[%clk 0:01:34]}  Qf7 {[%clk 0:01:24]} 27. Qb2 {[%clk 0:01:33]}  Kh8 {[%clk 0:01:18]} 28. Qc1 {[%clk 0:01:28]}  Kg8 {[%clk 0:01:17]} 29. Qd1 {[%clk 0:01:27]}  Rh7 {[%clk 0:01:17]} 30. Qe2 {[%clk 0:01:27]}  Kh8 {[%clk 0:01:17]} 31. c3 {[%clk 0:01:25]}  Qe8 {[%clk 0:01:13]} 32. a4 {[%clk 0:01:24]}  Nb8 {[%clk 0:01:07]} 33. a5 {[%clk 0:01:21]}  b5 {[%clk 0:01:07]} 34. bxc5 {[%clk 0:01:17]}  Bxc5 {[%clk 0:01:06]} 35. Nc2 {[%clk 0:01:17]}  Bxf2+ {[%clk 0:01:03]} 36. Kxf2 {[%clk 0:01:17]}  Rhd7 {[%clk 0:01:01]} 37. d4 {[%clk 0:01:16]}  a6 {[%clk 0:00:59]} 38. Nf3 {[%clk 0:01:13]}  exd4 {[%clk 0:00:51]} 39. cxd4 {[%clk 0:01:11]}  Re7 {[%clk 0:00:49]} 40. Re1 {[%clk 0:01:10]}  c5 {[%clk 0:00:46]} 41. e5 {[%clk 0:01:07]}  cxd4 {[%clk 0:00:43]} 42. Ncxd4 {[%clk 0:01:05]}  Nc6 {[%clk 0:00:38]} 43. Ne6 {[%clk 0:01:00]}  Rxe6 {[%clk 0:00:26]} 44. fxe6 {[%clk 0:01:00]}  Qxe6 {[%clk 0:00:22]} 45. exf6 {[%clk 0:00:46]}  Qxf6 {[%clk 0:00:22]} 46. Kg1 {[%clk 0:00:43]}  g4 {[%clk 0:00:18]} 47. hxg4 {[%clk 0:00:42]}  hxg4 {[%clk 0:00:18]} 48. Ne5 {[%clk 0:00:38]}  Nd4 {[%clk 0:00:11]} 49. Qxg4 {[%clk 0:00:35]}  Rg8 {[%clk 0:00:09]} 50. Qh5+ {[%clk 0:00:35]}  Kg7 {[%clk 0:00:09]} 51. Ng4 {[%clk 0:00:33]}  Qd8 {[%clk 0:00:03]} 52. Qh6+ {[%clk 0:00:26]}  Kf7 {[%clk 0:00:03]} 53. Qh7+ {[%clk 0:00:19]}  Rg7 {[%clk 0:00:03]} 54. Nh6+ {[%clk 0:00:17]}  Kf6 {[%clk 0:00:03]} 55. Rf1+ {[%clk 0:00:18]}  Ke6 {[%clk 0:00:01]} 56. Qxg7 {[%clk 0:00:17]}  Ne2+ {[%clk 0:00:02]} 57. Kf2 {[%clk 0:00:12]}  Qh4+ {[%clk 0:00:03]} 58. Kxe2 {[%clk 0:00:10]}  Qe4+ {[%clk 0:00:02]} 59. Kf2 {[%clk 0:00:10]} 1-0


[Site "https://www.chess.com"]

[Event "Titled Tuesday Blitz July 05 Late 2022"]
[White "Vasquez Schroeder, Rodrigo"]
[Black "Skytte, Rasmus"]
[WhiteFideId "3400042"]
[BlackFideId "1404210"]
[WhiteElo "2567"]
[BlackElo "2430"]
[Result "1/2-1/2"]
[Round "03"]
[TimeControl "180+1"]
[Date "2022.07.05"]
[WhiteClock "0:00:59"]
[BlackClock "0:00:15"]

1. e4 {[%clk 0:03:00]}  d5 {[%clk 0:02:42]} 2. exd5 {[%clk 0:03:00]}  Qxd5 {[%clk 0:02:41]} 3. Nc3 {[%clk 0:03:00]}  Qa5 {[%clk 0:02:41]} 4. g3 {[%clk 0:03:01]}  Nf6 {[%clk 0:02:41]} 5. Bg2 {[%clk 0:03:01]}  c6 {[%clk 0:02:41]} 6. h3 {[%clk 0:03:02]}  Bf5 {[%clk 0:02:40]} 7. Nf3 {[%clk 0:03:02]}  e6 {[%clk 0:02:40]} 8. O-O {[%clk 0:03:03]}  Nbd7 {[%clk 0:02:40]} 9. d3 {[%clk 0:03:03]}  Bd6 {[%clk 0:02:35]} 10. Bd2 {[%clk 0:03:01]}  Qc7 {[%clk 0:02:34]} 11. Qe2 {[%clk 0:03:00]}  h5 {[%clk 0:02:29]} 12. Rfe1 {[%clk 0:02:55]}  O-O-O {[%clk 0:02:25]} 13. Ne4 {[%clk 0:02:54]}  Nxe4 {[%clk 0:02:16]} 14. dxe4 {[%clk 0:02:54]}  Bg6 {[%clk 0:02:17]} 15. Bc3 {[%clk 0:02:52]}  e5 {[%clk 0:02:13]} 16. Nh4 {[%clk 0:02:51]}  Nf6 {[%clk 0:01:59]} 17. Red1 {[%clk 0:02:46]}  Bc5 {[%clk 0:01:57]} 18. Nxg6 {[%clk 0:02:35]}  fxg6 {[%clk 0:01:57]} 19. Qc4 {[%clk 0:02:35]}  Qb6 {[%clk 0:01:33]} 20. Bxe5 {[%clk 0:02:29]}  Bxf2+ {[%clk 0:01:31]} 21. Kh1 {[%clk 0:02:29]}  Nd7 {[%clk 0:01:20]} 22. Bd6 {[%clk 0:02:25]}  h4 {[%clk 0:01:15]} 23. e5 {[%clk 0:02:18]}  hxg3 {[%clk 0:01:06]} 24. e6 {[%clk 0:02:12]}  Nf6 {[%clk 0:01:01]} 25. e7 {[%clk 0:02:12]}  Rd7 {[%clk 0:01:01]} 26. Qe6 {[%clk 0:02:12]}  Re8 {[%clk 0:01:00]} 27. Rd3 {[%clk 0:02:03]}  Qxb2 {[%clk 0:00:29]} 28. Rad1 {[%clk 0:02:02]}  Qxc2 {[%clk 0:00:29]} 29. R3d2 {[%clk 0:01:54]}  Qf5 {[%clk 0:00:27]} 30. Qf7 {[%clk 0:01:54]}  Be3 {[%clk 0:00:25]} 31. Rf1 {[%clk 0:01:45]}  Bxd2 {[%clk 0:00:21]} 32. Rxf5 {[%clk 0:01:44]}  gxf5 {[%clk 0:00:22]} 33. Qe6 {[%clk 0:01:42]}  f4 {[%clk 0:00:21]} 34. h4 {[%clk 0:01:41]}  Be3 {[%clk 0:00:21]} 35. Bh3 {[%clk 0:01:41]}  c5 {[%clk 0:00:19]} 36. Be5 {[%clk 0:01:35]}  Rxe7 {[%clk 0:00:18]} 37. Qf5 {[%clk 0:01:31]}  Kd8 {[%clk 0:00:17]} 38. Bxf6 {[%clk 0:01:28]}  gxf6 {[%clk 0:00:17]} 39. Qxf6 {[%clk 0:01:29]}  Rd1+ {[%clk 0:00:17]} 40. Kg2 {[%clk 0:01:29]}  Rd2+ {[%clk 0:00:17]} 41. Kf3 {[%clk 0:01:29]}  Rf2+ {[%clk 0:00:18]} 42. Kg4 {[%clk 0:01:29]}  g2 {[%clk 0:00:18]} 43. Qd6+ {[%clk 0:01:24]}  Ke8 {[%clk 0:00:18]} 44. Bxg2 {[%clk 0:01:20]}  Rg7+ {[%clk 0:00:17]} 45. Kf5 {[%clk 0:01:19]}  Rfxg2 {[%clk 0:00:17]} 46. Qb8+ {[%clk 0:01:18]}  Kf7 {[%clk 0:00:17]} 47. Qxb7+ {[%clk 0:01:18]}  Kg8 {[%clk 0:00:18]} 48. Qd5+ {[%clk 0:01:16]}  Kh7 {[%clk 0:00:18]} 49. Qe4 {[%clk 0:01:16]}  R2g4 {[%clk 0:00:17]} 50. Kf6+ {[%clk 0:01:16]}  R4g6+ {[%clk 0:00:17]} 51. Kf5 {[%clk 0:01:14]}  Kh6 {[%clk 0:00:17]} 52. Qe8 {[%clk 0:01:12]}  Kh7 {[%clk 0:00:17]} 53. h5 {[%clk 0:01:10]}  Rg5+ {[%clk 0:00:17]} 54. Ke4 {[%clk 0:01:10]}  Bd4 {[%clk 0:00:16]} 55. Kxf4 {[%clk 0:01:06]}  Re5 {[%clk 0:00:15]} 56. Qc6 {[%clk 0:01:04]}  Rf7+ {[%clk 0:00:15]} 57. Kg4 {[%clk 0:01:05]}  Ref5 {[%clk 0:00:15]} 58. Qg6+ {[%clk 0:01:04]}  Kh8 {[%clk 0:00:15]} 59. Qh6+ {[%clk 0:01:04]}  Kg8 {[%clk 0:00:15]} 60. Qe6 {[%clk 0:01:03]}  Kg7 {[%clk 0:00:15]} 61. Qg6+ {[%clk 0:01:01]}  Kf8 {[%clk 0:00:15]} 62. Qd6+ {[%clk 0:01:02]}  Kg7 {[%clk 0:00:15]} 63. Qg6+ {[%clk 0:01:02]}  Kh8 {[%clk 0:00:16]} 64. Qh6+ {[%clk 0:01:01]}  Kg8 {[%clk 0:00:16]} 65. Qe6 {[%clk 0:01:01]}  Rf4+ {[%clk 0:00:15]} 66. Kg5 {[%clk 0:01:00]}  Rf5+ {[%clk 0:00:15]} 67. Kg4 {[%clk 0:00:59]} 1/2-1/2


[Site "https://www.chess.com"]

[Event "Titled Tuesday Blitz July 05 Late 2022"]
[White "Vlassov, Nikolai"]
[Black "Veiga, Jose Francisco R P Neves"]
[WhiteFideId "4103360"]
[BlackFideId "1930087"]
[WhiteElo "2324"]
[BlackElo "2288"]
[Result "0-1"]
[Round "03"]
[TimeControl "180+1"]
[Date "2022.07.06"]
[WhiteClock "0:00:02"]
[BlackClock "0:00:10"]

1. e4 {[%clk 0:03:00]}  c6 {[%clk 0:02:59]} 2. d4 {[%clk 0:03:00]}  g6 {[%clk 0:02:58]} 3. Nc3 {[%clk 0:02:59]}  Bg7 {[%clk 0:02:58]} 4. Bf4 {[%clk 0:02:59]}  d5 {[%clk 0:02:57]} 5. e5 {[%clk 0:02:59]}  f6 {[%clk 0:02:55]} 6. Qd2 {[%clk 0:02:54]}  Nd7 {[%clk 0:02:52]} 7. Nf3 {[%clk 0:02:51]}  Nf8 {[%clk 0:02:25]} 8. O-O-O {[%clk 0:02:49]}  Bg4 {[%clk 0:02:24]} 9. Be2 {[%clk 0:02:44]}  Ne6 {[%clk 0:02:23]} 10. Kb1 {[%clk 0:02:31]}  Nxf4 {[%clk 0:02:08]} 11. Qxf4 {[%clk 0:02:31]}  Nh6 {[%clk 0:02:09]} 12. exf6 {[%clk 0:02:14]}  exf6 {[%clk 0:02:07]} 13. h3 {[%clk 0:02:07]}  Bxf3 {[%clk 0:02:07]} 14. Bxf3 {[%clk 0:02:06]}  O-O {[%clk 0:02:08]} 15. h4 {[%clk 0:02:01]}  f5 {[%clk 0:01:23]} 16. Ne2 {[%clk 0:01:45]}  Qd7 {[%clk 0:00:58]} 17. Nc1 {[%clk 0:01:37]}  Rae8 {[%clk 0:00:53]} 18. Nd3 {[%clk 0:01:36]}  Nf7 {[%clk 0:00:50]} 19. Rhe1 {[%clk 0:01:27]}  Qd6 {[%clk 0:00:42]} 20. c3 {[%clk 0:01:13]}  Bh6 {[%clk 0:00:31]} 21. Qxd6 {[%clk 0:01:09]}  Nxd6 {[%clk 0:00:32]} 22. Nc5 {[%clk 0:01:00]}  Kf7 {[%clk 0:00:23]} 23. Kc2 {[%clk 0:00:48]}  b6 {[%clk 0:00:18]} 24. Nd7 {[%clk 0:00:47]}  Rxe1 {[%clk 0:00:15]} 25. Rxe1 {[%clk 0:00:45]}  Rc8 {[%clk 0:00:16]} 26. g4 {[%clk 0:00:34]}  Bg7 {[%clk 0:00:14]} 27. gxf5 {[%clk 0:00:21]}  Nxf5 {[%clk 0:00:13]} 28. Bg4 {[%clk 0:00:20]}  Rd8 {[%clk 0:00:11]} 29. Bxf5 {[%clk 0:00:18]}  gxf5 {[%clk 0:00:12]} 30. Ne5+ {[%clk 0:00:17]}  Bxe5 {[%clk 0:00:13]} 31. Rxe5 {[%clk 0:00:18]}  Kf6 {[%clk 0:00:13]} 32. Kd3 {[%clk 0:00:16]}  Rg8 {[%clk 0:00:13]} 33. Ke3 {[%clk 0:00:13]}  Rg4 {[%clk 0:00:13]} 34. h5 {[%clk 0:00:12]}  Rh4 {[%clk 0:00:13]} 35. Re8 {[%clk 0:00:12]}  Rxh5 {[%clk 0:00:11]} 36. Rc8 {[%clk 0:00:12]}  Rh3+ {[%clk 0:00:12]} 37. Ke2 {[%clk 0:00:12]}  Kg5 {[%clk 0:00:11]} 38. Rxc6 {[%clk 0:00:12]}  h5 {[%clk 0:00:12]} 39. Rd6 {[%clk 0:00:12]}  h4 {[%clk 0:00:12]} 40. Rxd5 {[%clk 0:00:11]}  Rh1 {[%clk 0:00:13]} 41. Rd8 {[%clk 0:00:10]}  h3 {[%clk 0:00:13]} 42. Kf3 {[%clk 0:00:09]}  Rb1 {[%clk 0:00:11]} 43. b4 {[%clk 0:00:09]}  Rc1 {[%clk 0:00:10]} 44. Rg8+ {[%clk 0:00:07]}  Kf6 {[%clk 0:00:11]} 45. Rh8 {[%clk 0:00:04]}  Rxc3+ {[%clk 0:00:11]} 46. Kf4 {[%clk 0:00:04]}  Ke6 {[%clk 0:00:11]} 47. a4 {[%clk 0:00:02]}  Rc4 {[%clk 0:00:10]} 48. Rh6+ {[%clk 0:00:01]}  Kd5 {[%clk 0:00:11]} 49. Kxf5 {[%clk 0:00:02]}  Rc3 {[%clk 0:00:10]} 0-1


[Site "https://www.chess.com"]

[Event "Titled Tuesday Blitz July 05 Late 2022"]
[White "Vrbljanac, Aleksandar"]
[Black "Souleidis, Georgios"]
[WhiteFideId "932817"]
[BlackFideId "4206827"]
[WhiteElo "2309"]
[BlackElo "2401"]
[Result "1/2-1/2"]
[Round "03"]
[TimeControl "180+1"]
[Date "2022.07.06"]
[WhiteClock "0:00:09"]
[BlackClock "0:00:07"]

1. e4 {[%clk 0:03:00]}  c6 {[%clk 0:02:57]} 2. Nf3 {[%clk 0:03:00]}  d5 {[%clk 0:02:57]} 3. Nc3 {[%clk 0:03:01]}  dxe4 {[%clk 0:02:56]} 4. Nxe4 {[%clk 0:03:02]}  Nf6 {[%clk 0:02:56]} 5. Qe2 {[%clk 0:03:02]}  Nxe4 {[%clk 0:02:57]} 6. Qxe4 {[%clk 0:03:03]}  Nd7 {[%clk 0:02:57]} 7. Bc4 {[%clk 0:03:02]}  Nf6 {[%clk 0:02:58]} 8. Ne5 {[%clk 0:03:03]}  e6 {[%clk 0:02:58]} 9. Qe2 {[%clk 0:03:03]}  b6 {[%clk 0:02:59]} 10. Nxc6 {[%clk 0:02:55]}  Qc7 {[%clk 0:02:59]} 11. Ne5 {[%clk 0:02:52]}  Bd6 {[%clk 0:02:56]} 12. Bb5+ {[%clk 0:02:50]}  Kf8 {[%clk 0:02:56]} 13. d4 {[%clk 0:02:48]}  Bb7 {[%clk 0:02:55]} 14. O-O {[%clk 0:02:46]}  h6 {[%clk 0:02:51]} 15. Bf4 {[%clk 0:02:40]}  g5 {[%clk 0:02:44]} 16. Bg3 {[%clk 0:02:40]}  Ne4 {[%clk 0:02:44]} 17. Bd3 {[%clk 0:02:31]}  Nxg3 {[%clk 0:02:14]} 18. hxg3 {[%clk 0:02:32]}  Bxe5 {[%clk 0:01:59]} 19. dxe5 {[%clk 0:02:30]}  Qc6 {[%clk 0:01:55]} 20. f3 {[%clk 0:02:26]}  Rc8 {[%clk 0:01:47]} 21. Qe3 {[%clk 0:02:21]}  Qc5 {[%clk 0:01:42]} 22. Qxc5+ {[%clk 0:02:18]}  Rxc5 {[%clk 0:01:43]} 23. Rfe1 {[%clk 0:02:19]}  Ke7 {[%clk 0:01:43]} 24. Kf2 {[%clk 0:02:19]}  a5 {[%clk 0:01:39]} 25. f4 {[%clk 0:02:17]}  gxf4 {[%clk 0:01:33]} 26. gxf4 {[%clk 0:02:18]}  Rg8 {[%clk 0:01:30]} 27. g3 {[%clk 0:02:18]}  a4 {[%clk 0:01:26]} 28. b3 {[%clk 0:02:04]}  a3 {[%clk 0:01:24]} 29. c4 {[%clk 0:01:59]}  Rcc8 {[%clk 0:01:22]} 30. Rad1 {[%clk 0:01:58]}  Rcd8 {[%clk 0:01:22]} 31. Bc2 {[%clk 0:01:50]}  Bc6 {[%clk 0:01:03]} 32. Rxd8 {[%clk 0:01:47]}  Rxd8 {[%clk 0:01:04]} 33. Ke3 {[%clk 0:01:40]}  f6 {[%clk 0:01:03]} 34. Rd1 {[%clk 0:01:28]}  Rg8 {[%clk 0:01:00]} 35. exf6+ {[%clk 0:01:26]}  Kxf6 {[%clk 0:00:59]} 36. Kf2 {[%clk 0:01:26]}  Ke7 {[%clk 0:00:47]} 37. b4 {[%clk 0:01:18]}  h5 {[%clk 0:00:39]} 38. Bb3 {[%clk 0:00:59]}  h4 {[%clk 0:00:38]} 39. Rg1 {[%clk 0:00:58]}  h3 {[%clk 0:00:37]} 40. b5 {[%clk 0:00:32]}  Bb7 {[%clk 0:00:36]} 41. c5 {[%clk 0:00:10]}  bxc5 {[%clk 0:00:36]} 42. Re1 {[%clk 0:00:09]}  Rg6 {[%clk 0:00:20]} 43. f5 {[%clk 0:00:08]}  Rh6 {[%clk 0:00:20]} 44. Bxe6 {[%clk 0:00:07]}  Kf8 {[%clk 0:00:17]} 45. Bd7 {[%clk 0:00:02]}  h2 {[%clk 0:00:17]} 46. Bc6 {[%clk 0:00:03]}  Bxc6 {[%clk 0:00:17]} 47. bxc6 {[%clk 0:00:03]}  h1=Q {[%clk 0:00:17]} 48. Rxh1 {[%clk 0:00:03]}  Rxc6 {[%clk 0:00:13]} 49. Ke3 {[%clk 0:00:02]}  Rb6 {[%clk 0:00:05]} 50. Rc1 {[%clk 0:00:02]}  Rb5 {[%clk 0:00:04]} 51. Kd3 {[%clk 0:00:02]}  Rb2 {[%clk 0:00:04]} 52. Rxc5 {[%clk 0:00:02]}  Rxa2 {[%clk 0:00:05]} 53. Ra5 {[%clk 0:00:03]}  Rg2 {[%clk 0:00:04]} 54. Ke4 {[%clk 0:00:02]}  Rxg3 {[%clk 0:00:03]} 55. Ke5 {[%clk 0:00:03]}  Re3+ {[%clk 0:00:01]} 56. Kf6 {[%clk 0:00:03]}  Ke8 {[%clk 0:00:01]} 57. Ra8+ {[%clk 0:00:03]}  Kd7 {[%clk 0:00:02]} 58. Ra7+ {[%clk 0:00:04]}  Kc6 {[%clk 0:00:02]} 59. Kf7 {[%clk 0:00:04]}  Kb6 {[%clk 0:00:03]} 60. Ra8 {[%clk 0:00:05]}  Kb7 {[%clk 0:00:03]} 61. Ra4 {[%clk 0:00:05]}  Kc7 {[%clk 0:00:03]} 62. f6 {[%clk 0:00:06]}  Kb6 {[%clk 0:00:04]} 63. Kf8 {[%clk 0:00:05]}  Kb5 {[%clk 0:00:05]} 64. Ra8 {[%clk 0:00:06]}  Kb4 {[%clk 0:00:05]} 65. f7 {[%clk 0:00:06]}  Rf3 {[%clk 0:00:05]} 66. Kg7 {[%clk 0:00:07]}  Rg3+ {[%clk 0:00:05]} 67. Kf6 {[%clk 0:00:07]}  Rf3+ {[%clk 0:00:06]} 68. Ke7 {[%clk 0:00:07]}  Kb3 {[%clk 0:00:06]} 69. Rb8+ {[%clk 0:00:07]}  Kc2 {[%clk 0:00:06]} 70. Rb6 {[%clk 0:00:08]}  Rxf7+ {[%clk 0:00:05]} 71. Kxf7 {[%clk 0:00:08]}  a2 {[%clk 0:00:06]} 72. Rc6+ {[%clk 0:00:08]}  Kb2 {[%clk 0:00:06]} 73. Ra6 {[%clk 0:00:09]}  a1=Q {[%clk 0:00:06]} 74. Rxa1 {[%clk 0:00:09]}  Kxa1 {[%clk 0:00:07]} 1/2-1/2


[Site "https://www.chess.com"]

[Event "Titled Tuesday Blitz July 05 Late 2022"]
[White "Wartiovaara, Oliver"]
[Black "Kozin, Yuri"]
[WhiteFideId "513024"]
[BlackFideId "4129920"]
[WhiteElo "1971"]
[BlackElo "2551"]
[Result "1/2-1/2"]
[Round "03"]
[TimeControl "180+1"]
[Date "2022.07.06"]
[WhiteClock "0:00:09"]
[BlackClock "0:00:15"]

1. e4 {[%clk 0:03:00]}  c5 {[%clk 0:02:57]} 2. Nf3 {[%clk 0:03:01]}  e6 {[%clk 0:02:57]} 3. d4 {[%clk 0:02:57]}  cxd4 {[%clk 0:02:57]} 4. Nxd4 {[%clk 0:02:58]}  a6 {[%clk 0:02:57]} 5. g3 {[%clk 0:02:57]}  Qc7 {[%clk 0:02:56]} 6. Bg2 {[%clk 0:02:57]}  Nf6 {[%clk 0:02:56]} 7. O-O {[%clk 0:02:57]}  Be7 {[%clk 0:02:56]} 8. Nc3 {[%clk 0:02:39]}  d6 {[%clk 0:02:56]} 9. a4 {[%clk 0:02:33]}  Bd7 {[%clk 0:02:55]} 10. Be3 {[%clk 0:02:26]}  Nc6 {[%clk 0:02:54]} 11. Nxc6 {[%clk 0:02:19]}  Bxc6 {[%clk 0:02:54]} 12. f4 {[%clk 0:02:08]}  O-O {[%clk 0:02:52]} 13. f5 {[%clk 0:02:06]}  b5 {[%clk 0:02:37]} 14. b4 {[%clk 0:01:37]}  Qb7 {[%clk 0:02:29]} 15. axb5 {[%clk 0:01:14]}  axb5 {[%clk 0:02:28]} 16. Rxa8 {[%clk 0:01:10]}  Qxa8 {[%clk 0:02:25]} 17. fxe6 {[%clk 0:01:00]}  fxe6 {[%clk 0:02:25]} 18. Bh3 {[%clk 0:00:52]}  Bd7 {[%clk 0:02:16]} 19. e5 {[%clk 0:00:42]}  Ne8 {[%clk 0:01:44]} 20. Rxf8+ {[%clk 0:00:38]}  Bxf8 {[%clk 0:01:45]} 21. Bg2 {[%clk 0:00:29]}  Bc6 {[%clk 0:01:40]} 22. exd6 {[%clk 0:00:19]}  Bxd6 {[%clk 0:01:30]} 23. Qe2 {[%clk 0:00:11]}  Bxb4 {[%clk 0:01:21]} 24. Nxb5 {[%clk 0:00:10]}  Bxg2 {[%clk 0:00:53]} 25. Qxg2 {[%clk 0:00:11]}  Qa1+ {[%clk 0:00:53]} 26. Qf1 {[%clk 0:00:11]}  Qe5 {[%clk 0:00:50]} 27. Qd3 {[%clk 0:00:10]}  Nf6 {[%clk 0:00:40]} 28. c3 {[%clk 0:00:10]}  Bc5 {[%clk 0:00:37]} 29. Bxc5 {[%clk 0:00:10]}  Qxc5+ {[%clk 0:00:38]} 30. Nd4 {[%clk 0:00:11]}  e5 {[%clk 0:00:37]} 31. Qb5 {[%clk 0:00:09]}  Qa7 {[%clk 0:00:35]} 32. Qxe5 {[%clk 0:00:09]}  Qa1+ {[%clk 0:00:35]} 33. Kg2 {[%clk 0:00:08]}  Qxc3 {[%clk 0:00:31]} 34. Qe6+ {[%clk 0:00:08]}  Kh8 {[%clk 0:00:27]} 35. Nf5 {[%clk 0:00:08]}  Qd2+ {[%clk 0:00:20]} 36. Kg1 {[%clk 0:00:07]}  Qd8 {[%clk 0:00:21]} 37. Kg2 {[%clk 0:00:06]}  g6 {[%clk 0:00:21]} 38. Ne7 {[%clk 0:00:05]}  Kg7 {[%clk 0:00:20]} 39. Nc6 {[%clk 0:00:04]}  Qd2+ {[%clk 0:00:19]} 40. Kf3 {[%clk 0:00:02]}  Qc3+ {[%clk 0:00:18]} 41. Kg2 {[%clk 0:00:02]}  h5 {[%clk 0:00:16]} 42. Qe7+ {[%clk 0:00:02]}  Kh6 {[%clk 0:00:16]} 43. Ne5 {[%clk 0:00:02]}  Qc2+ {[%clk 0:00:15]} 44. Kf3 {[%clk 0:00:02]}  Qf5+ {[%clk 0:00:15]} 45. Kg2 {[%clk 0:00:02]}  Qe4+ {[%clk 0:00:15]} 46. Kf2 {[%clk 0:00:02]}  Ng4+ {[%clk 0:00:11]} 47. Nxg4+ {[%clk 0:00:02]}  Qxg4 {[%clk 0:00:12]} 48. Qe3+ {[%clk 0:00:02]}  Qg5 {[%clk 0:00:11]} 49. Qf3 {[%clk 0:00:03]}  Qe5 {[%clk 0:00:11]} 50. Qe3+ {[%clk 0:00:04]}  Qxe3+ {[%clk 0:00:11]} 51. Kxe3 {[%clk 0:00:04]}  Kg5 {[%clk 0:00:11]} 52. Kf3 {[%clk 0:00:05]}  Kf5 {[%clk 0:00:12]} 53. h3 {[%clk 0:00:06]}  g5 {[%clk 0:00:12]} 54. g4+ {[%clk 0:00:06]}  hxg4+ {[%clk 0:00:13]} 55. hxg4+ {[%clk 0:00:07]}  Ke5 {[%clk 0:00:13]} 56. Ke3 {[%clk 0:00:07]}  Kd5 {[%clk 0:00:13]} 57. Kd3 {[%clk 0:00:07]}  Ke5 {[%clk 0:00:14]} 58. Ke3 {[%clk 0:00:08]}  Kd5 {[%clk 0:00:14]} 59. Kd3 {[%clk 0:00:09]}  Ke5 {[%clk 0:00:15]} 60. Ke3 {[%clk 0:00:09]} 1/2-1/2


[Site "https://www.chess.com"]